[Event "Czech Youth U14 Boys 2024"]
[Site "Kouty nad Desnou"]
[Date "2024.03.14"]
[Round "7.5"]
[White "Komarek, Tobias"]
[Black "Krivka, Matej"]
[Result "0-1"]
[ECO "E68"]
[WhiteElo "1822"]
[BlackElo "1850"]
[Annotator "NA RC"]
[PlyCount "40"]
[EventDate "2024.03.10"]
[EventType "swiss"]
[EventCountry "CZE"]
[SourceTitle "playchess.com"]
[Source "ChessBase"]
[SourceQuality "1"]
[TimeControl "40/5400+30:1800+30"]

1. d4 {[%emt 0:00:10]} Nf6 {[%emt 0:00:15]} 2. c4 {[%emt 0:00:13]} g6 {[%emt 0:00:12]} 3. g3 {[%emt 0:00:43]} Bg7 {[%emt 0:00:44]} 4. Bg2 {[%emt 0:00:08]} d6 {[%emt 0:00:33]} 5. Nc3 {[%emt 0:01:52]} O-O {[%emt 0:00:53]} 6. Nf3 {[%emt 0:00:32]} Nbd7 {[%emt 0:00:45]} 7. O-O {[%emt 0:01:17]} e5 {[%emt 0:01:56]} 8. e4 {[%emt 0:08:44]} c6 {[%emt 0:03:10]} 9. b3 {[%emt 0:04:09]} exd4 {[%emt 0:04:30]} 10. Nxd4 {[%emt 0:00:07]} Nc5 {[%emt 0:01:03]} 11. Ba3 {[%emt 0:04:18]} Re8 {[%emt 0:04:08]} 12. Re1 {[%emt 0:09:49]} Qb6 {[%emt 0:12:09]} 13. Nc2 $2 {[%emt 0:07:45]} (13. h3 $11) 13... Ng4 {[%emt 0:10:15]} 14. e5 {[%emt 0:39:27]} Nxb3 {[%emt 0:25:10]} 15. axb3 {[%emt 0:08:59]} Qxf2+ {[%emt 0:00:42]} 16. Kh1 {[%emt 0:00:27]} Bf5 $17 {[%emt 0:07:02]} (16... Rxe5 $19 {has better winning chances.} 17. Rc1 Bf5) 17. Ra2 {[%emt 0:08:30]} Bxe5 {[%emt 0:02:27]} 18. Ne3 {[%emt 0:01:15]} Bxc3 {[%emt 0:01:34]} 19. Rxf2 {[%emt 0:00:56]} Nxf2+ {[%emt 0:00:09]} 20. Kg1 {[%emt 0:00:03]} Nxd1 {[%emt 0:00:07]} 0-1

[Event "Czech Youth U14 Boys 2024"]
[Site "Kouty nad Desnou"]
[Date "2024.03.14"]
[Round "7.6"]
[White "Stara, Zuzana"]
[Black "Kutil, Adam"]
[Result "1-0"]
[ECO "B40"]
[WhiteElo "1807"]
[BlackElo "1820"]
[Annotator "NA RC"]
[PlyCount "25"]
[EventDate "2024.03.10"]
[EventType "swiss"]
[EventCountry "CZE"]
[SourceTitle "playchess.com"]
[Source "ChessBase"]
[SourceQuality "1"]
[TimeControl "40/5400+30:1800+30"]

1. e4 {[%emt 0:00:01]} c5 {[%emt 0:00:21]} 2. Nf3 {[%emt 0:00:07]} e6 {[%emt 0:00:09]} 3. b3 {[%emt 0:00:04]} b6 {[%emt 0:08:45]} 4. Bb2 {[%emt 0:01:36]} Bb7 {[%emt 0:00:31]} 5. Bd3 {[%emt 0:01:24]} Nf6 {[%emt 0:02:36]} 6. Qe2 {[%emt 0:01:37]} Be7 {[%emt 0:04:44]} 7. c4 {[%emt 0:00:37]} O-O {[%emt 0:01:12]} 8. O-O {[%emt 0:01:44]} d5 {[%emt 0:01:25]} 9. cxd5 {[%emt 0:09:11]} exd5 {[%emt 0:00:16]} 10. e5 {[%emt 0:00:15]} Ne8 {[%emt 0:04:08]} 11. e6 {[%emt 0:09:26]} f6 {[%emt 0:06:03]} 12. Nh4 {[%emt 0:04:17]} Nd6 {[%emt 0:11:45]} 13. Bxh7+ {[%emt 0:04:50]} 1-0

[Event "Czech Youth U14 Boys 2024"]
[Site "Kouty nad Desnou"]
[Date "2024.03.14"]
[Round "7.7"]
[White "Pogorelskiy, Boris"]
[Black "Sotek, Simon"]
[Result "0-1"]
[ECO "B01"]
[WhiteElo "1747"]
[BlackElo "1793"]
[Annotator "NA RC"]
[PlyCount "82"]
[EventDate "2024.03.10"]
[EventType "swiss"]
[EventCountry "CZE"]
[SourceTitle "playchess.com"]
[Source "ChessBase"]
[SourceQuality "1"]
[TimeControl "40/5400+30:1800+30"]

1. e4 {[%emt 0:00:03]} d5 {[%emt 0:00:16]} 2. exd5 {[%emt 0:00:06]} Nf6 {[%emt 0:00:06]} 3. Nf3 {[%emt 0:00:26]} Nxd5 {[%emt 0:00:11]} 4. d4 {[%emt 0:00:09]} Bg4 {[%emt 0:00:30]} 5. c4 {[%emt 0:00:34]} Nf6 {[%emt 0:00:11]} 6. Be2 {[%emt 0:00:54]} e6 {[%emt 0:00:31]} 7. O-O {[%emt 0:00:13]} c6 {[%emt 0:00:48]} 8. Nc3 {[%emt 0:00:39]} Nbd7 {[%emt 0:02:04]} 9. h3 {[%emt 0:00:33]} Bh5 {[%emt 0:02:06]} 10. Bf4 {[%emt 0:00:55]} Nb6 {[%emt 0:00:25]} 11. Ne5 {[%emt 0:14:07]} Bxe2 {[%emt 0:07:52]} 12. Nxe2 {[%emt 0:00:08]} Nfd7 {[%emt 0:01:01]} 13. Rc1 {[%emt 0:01:47]} Nxe5 {[%emt 0:00:45]} 14. dxe5 {[%emt 0:05:43]} Be7 {[%emt 0:01:55]} 15. Ng3 {[%emt 0:00:40]} O-O {[%emt 0:05:31]} 16. Qg4 {[%emt 0:04:09]} Qd3 {[%emt 0:01:43]} 17. Rfd1 {[%emt 0:02:54]} Qg6 {[%emt 0:00:32]} 18. Qxg6 {[%emt 0:01:04]} fxg6 {[%emt 0:08:02]} 19. Be3 {[%emt 0:01:13]} Rfd8 {[%emt 0:05:24]} 20. b3 {[%emt 0:10:39]} Nd7 {[%emt 0:02:18]} 21. Ne4 {[%emt 0:15:44]} Nxe5 {[%emt 0:01:34]} 22. Rxd8+ {[%emt 0:03:53]} Rxd8 {[%emt 0:02:40]} 23. Bxa7 {[%emt 0:00:45]} Nf7 {[%emt 0:14:20]} 24. Re1 {[%emt 0:03:19]} e5 {[%emt 0:08:00]} 25. Bb6 {[%emt 0:01:32]} Rd7 {[%emt 0:02:32]} 26. Re2 {[%emt 0:02:02]} Ng5 {[%emt 0:00:39]} 27. Nxg5 {[%emt 0:00:52]} Bxg5 {[%emt 0:00:16]} 28. g3 {[%emt 0:00:07]} Bf6 {[%emt 0:02:40]} 29. Ba5 {[%emt 0:01:14]} Kf7 {[%emt 0:01:16]} 30. Bc3 {[%emt 0:00:30]} Re7 {[%emt 0:00:42]} 31. Kg2 {[%emt 0:01:04]} e4 {[%emt 0:04:33]} 32. Re3 {[%emt 0:02:07]} Bxc3 {[%emt 0:00:37]} 33. Rxc3 {[%emt 0:00:11]} Kf6 {[%emt 0:00:15]} 34. Kf1 {[%emt 0:07:29]} Ke5 {[%emt 0:00:38]} 35. Ke2 {[%emt 0:00:04]} Kd4 {[%emt 0:00:21]} 36. Re3 {[%emt 0:00:36]} Rf7 {[%emt 0:08:10]} 37. c5 {[%emt 0:04:02]} Rf3 {[%emt 0:05:35]} 38. b4 {[%emt 0:01:31]} Rxe3+ {[%emt 0:11:55]} 39. fxe3+ {[%emt 0:00:09]} Kc3 {[%emt 0:00:05]} 40. a3 {[%emt 0:00:10]} Kc4 {[%emt 0:00:45]} 41. Ke1 {[%emt 0:32:12]} Kd3 {[%emt 0:07:00]} 0-1

[Event "Czech Youth U14 Boys 2024"]
[Site "Kouty nad Desnou"]
[Date "2024.03.14"]
[Round "7.8"]
[White "Roubal, Matyas"]
[Black "Gregor, Alexandr"]
[Result "1-0"]
[ECO "B30"]
[WhiteElo "1849"]
[BlackElo "1777"]
[Annotator "NA RC"]
[PlyCount "111"]
[EventDate "2024.03.10"]
[EventType "swiss"]
[EventCountry "CZE"]
[SourceTitle "playchess.com"]
[Source "ChessBase"]
[SourceQuality "1"]
[TimeControl "40/5400+30:1800+30"]

1. e4 {[%emt 0:00:02]} c5 {[%emt 0:00:04]} 2. Nf3 {[%emt 0:00:05]} Nc6 {[%emt 0:00:04]} 3. Bb5 {[%emt 0:00:11]} e6 {[%emt 0:00:07]} 4. Bxc6 {[%emt 0:01:48]} bxc6 {[%emt 0:00:07]} 5. O-O {[%emt 0:02:08]} Ne7 {[%emt 0:00:39]} 6. d3 {[%emt 0:05:30]} Ng6 {[%emt 0:00:19]} 7. e5 {[%emt 0:07:57] B30: Sicilian: 2...Nc6 3 Bb5, lines without ...g6.} Qc7 {[%emt 0:03:40] Recently 7...f6 got a lot of attention.} 8. Re1 {[%emt 0:03:44]} d6 $146 {[%emt 0:01:37]} ({Predecessor:} 8... Be7 9. h4 f6 10. Nbd2 O-O 11. exf6 Bxf6 12. Ne4 Bxh4 13. Nxh4 Nxh4 14. Qh5 Nf5 {1-0 Grover,S (2505)-Lupulescu,C (2640) Al Ain op 3rd 2014 (6)}) 9. exd6 {[%emt 0:02:27]} Bxd6 {[%emt 0:00:05]} 10. Nbd2 {[%emt 0:02:45]} Rb8 {[%emt 0:07:56]} 11. Ne4 {[%emt 0:05:47]} f6 {[%emt 0:06:20]} 12. Nxd6+ {[%emt 0:01:51]} Qxd6 {[%emt 0:00:06]} 13. Nd2 {[%emt 0:01:30]} Kf7 {[%emt 0:03:24]} 14. Ne4 {[%emt 0:01:35]} Qd5 {[%emt 0:03:02]} 15. b3 {[%emt 0:02:52]} h5 {[%emt 0:22:53]} (15... Rd8 $16 {war einen Versuch wert.} 16. Be3 Kg8) 16. c4 {[%emt 0:03:23]} Qd8 {[%emt 0:06:15]} 17. Nxc5 {[%emt 0:13:50]} e5 {[%emt 0:02:11]} 18. Qf3 {[%emt 0:05:42]} h4 {[%emt 0:07:35]} 19. Qxc6 {[%emt 0:05:26]} h3 {[%emt 0:04:02]} 20. g3 {[%emt 0:01:50]} Ne7 {[%emt 0:06:19]} 21. Qf3 {[%emt 0:05:27]} Nf5 {[%emt 0:01:26]} 22. Bb2 {[%emt 0:03:10]} Qc7 {[%emt 0:02:55]} 23. Ne4 {[%emt 0:04:21]} a5 {[%emt 0:03:22]} 24. Bc3 {[%emt 0:02:25]} Kg8 {[%emt 0:03:05]} (24... Qd7 $142 25. Rad1 (25. Bxa5 Nd4 $11) 25... Nd4 26. Bxd4 Qxd4) 25. Nd2 {[%emt 0:01:26]} Ne7 {[%emt 0:02:28]} 26. Qe2 {[%emt 0:01:35]} Bb7 {[%emt 0:01:53]} 27. d4 {[%emt 0:00:56]} exd4 {[%emt 0:02:03]} 28. Bxd4 {[%emt 0:00:25]} ({Not} 28. Qxe7 Qxe7 29. Rxe7 dxc3 $16) 28... Kf8 {[%emt 0:02:02] [#]} 29. Bb6 $1 {[%emt 0:03:11]} Qxb6 {[%emt 0:02:28]} 30. Qxe7+ {[%emt 0:00:04]} Kg8 {[%emt 0:00:06]} 31. Qe6+ {[%emt 0:00:24]} (31. Rad1 $142) 31... Qxe6 {[%emt 0:00:14]} 32. Rxe6 {[%emt 0:00:01]} Kf7 {[%emt 0:00:56]} 33. Rae1 {[%emt 0:02:02]} Kg6 {[%emt 0:00:41]} 34. Ne4 {[%emt 0:02:14]} Bc8 {[%emt 0:01:29]} 35. Re7 {[%emt 0:00:48]} a4 {[%emt 0:01:31]} 36. Nc5 {[%emt 0:01:44]} axb3 {[%emt 0:00:34]} 37. axb3 {[%emt 0:00:07]} Bf5 {[%emt 0:00:33]} 38. Rb7 {[%emt 0:03:36]} ({Günstiger ist} 38. f3 $18) 38... Rxb7 {[%emt 0:01:22]} 39. Nxb7 {[%emt 0:00:04]} Rb8 {[%emt 0:01:13]} (39... Ra8 $142 40. Nd6 Ra3) 40. Na5 {[%emt 0:02:12]} Bc2 {[%emt 0:00:35]} 41. Rc1 {[%emt 0:32:15]} Be4 {[%emt 0:31:17]} 42. f4 {[%emt 0:01:24]} Kf5 {[%emt 0:00:00]} 43. Kf2 {[%emt 0:00:00]} Kg4 {[%emt 0:00:00]} 44. Rd1 {[%emt 0:00:00]} Bc2 {[%emt 0:00:00]} 45. Rd2 {[%emt 0:00:00]} Be4 {[%emt 0:00:00]} 46. Rd7 {[%emt 0:00:00]} g5 {[%emt 0:00:00]} 47. fxg5 {[%emt 0:00:00]} fxg5 {[%emt 0:00:00]} 48. Rd4 {[%emt 0:00:00]} Kf5 {[%emt 0:00:00]} 49. c5 {[%emt 0:00:00]} Ke5 {[%emt 0:00:00]} 50. Ke3 {[%emt 0:00:00]} Bg2 $18 {[%emt 0:00:00]} 51. c6 {[%emt 0:00:00]} Rc8 {[%emt 0:00:00]} 52. b4 {[%emt 0:00:00]} Rb8 {[%emt 0:00:00]} 53. Rc4 {[%emt 0:00:00]} Bd5 {[%emt 0:00:39]} 54. c7 {[%emt 0:00:00]} Rc8 {[%emt 0:00:24]} 55. Rc5 {[%emt 0:00:00]} Kd6 {[%emt 0:00:28]} 56. Kd4 {[%emt 0:00:00]} 1-0

[Event "Czech Youth U14 Boys 2024"]
[Site "Kouty nad Desnou"]
[Date "2024.03.14"]
[Round "7.9"]
[White "Jezek, Jakub"]
[Black "Stary, Vojtech"]
[Result "1-0"]
[ECO "B48"]
[WhiteElo "1854"]
[BlackElo "1950"]
[Annotator "RC"]
[PlyCount "53"]
[EventDate "2024.03.10"]
[EventType "swiss"]
[EventCountry "CZE"]
[SourceTitle "playchess.com"]
[Source "ChessBase"]
[SourceQuality "1"]
[TimeControl "40/5400+30:1800+30"]

1. e4 {[%emt 0:00:03]} c5 {[%emt 0:00:03]} 2. Nf3 {[%emt 0:00:04]} Nc6 {[%emt 0:00:04]} 3. d4 {[%emt 0:00:15]} cxd4 {[%emt 0:00:04]} 4. Nxd4 {[%emt 0:00:04]} e6 {[%emt 0:00:06]} 5. Nc3 {[%emt 0:02:52]} Qc7 {[%emt 0:00:08]} 6. Be3 {[%emt 0:01:47]} a6 {[%emt 0:00:06]} 7. a3 {[%emt 0:02:14]} Nf6 {[%emt 0:00:42]} 8. Be2 {[%emt 0:02:40]} Be7 {[%emt 0:00:36]} 9. O-O {[%emt 0:00:43]} O-O {[%emt 0:00:35]} 10. f4 {[%emt 0:01:56]} d6 {[%emt 0:01:34]} 11. Bf3 {[%emt 0:01:41]} Bd7 {[%emt 0:03:30]} 12. Nxc6 {[%emt 0:04:03]} Bxc6 {[%emt 0:02:22]} 13. g4 {[%emt 0:02:19]} Rfd8 {[%emt 0:06:03]} 14. g5 {[%emt 0:00:23]} Nd7 {[%emt 0:00:58]} 15. Qe1 {[%emt 0:00:47]} b5 {[%emt 0:02:57]} 16. Qg3 {[%emt 0:05:20]} Nb6 {[%emt 0:03:54]} 17. f5 {[%emt 0:07:10]} Nc4 {[%emt 0:05:12]} 18. Bd4 {[%emt 0:08:22]} exf5 {[%emt 0:08:09]} 19. exf5 {[%emt 0:07:55]} Nd2 {[%emt 0:04:44]} 20. Bxc6 {[%emt 0:00:32]} Nxf1 {[%emt 0:01:05]} 21. Qg2 {[%emt 0:02:03]} Rab8 {[%emt 0:14:58]} 22. Nd5 {[%emt 0:02:20]} Qa5 {[%emt 0:00:30]} 23. b4 {[%emt 0:00:18]} Qa4 {[%emt 0:00:57]} 24. Nxe7+ {[%emt 0:00:06]} Kf8 {[%emt 0:00:15]} 25. Bd5 {[%emt 0:00:28]} Ne3 {[%emt 0:03:52]} 26. Bxe3 {[%emt 0:00:57]} Kxe7 {[%emt 0:00:28]} 27. Bb3 {[%emt 0:00:11]} 1-0

[Event "Czech Youth U14 Boys 2024"]
[Site "Kouty nad Desnou"]
[Date "2024.03.14"]
[Round "7.10"]
[White "Migalko, Dmitriy"]
[Black "Svadlenka, Dominik"]
[Result "0-1"]
[ECO "B40"]
[WhiteElo "1896"]
[BlackElo "1888"]
[Annotator "NA RC"]
[PlyCount "76"]
[EventDate "2024.03.10"]
[EventType "swiss"]
[EventCountry "CZE"]
[SourceTitle "playchess.com"]
[Source "ChessBase"]
[SourceQuality "1"]
[TimeControl "40/5400+30:1800+30"]

1. e4 {[%emt 0:00:04]} c5 {[%emt 0:00:03]} 2. Nf3 {[%emt 0:00:48]} e6 {[%emt 0:00:05]} 3. c3 {[%emt 0:01:19]} d5 {[%emt 0:01:04]} 4. exd5 {[%emt 0:00:13]} exd5 {[%emt 0:00:05]} 5. d4 {[%emt 0:00:16]} Nf6 {[%emt 0:01:31]} 6. Be2 {[%emt 0:01:11]} Nc6 {[%emt 0:00:37] B22: Sizilianisch (Alapin 2.c3).} 7. Bg5 {[%emt 0:01:05]} Be6 {[%emt 0:04:51]} 8. dxc5 {[%emt 0:03:19]} Bxc5 {[%emt 0:02:30]} 9. O-O {[%emt 0:01:06]} O-O {[%emt 0:01:22]} 10. Nbd2 {[%emt 0:01:35]} h6 {[%emt 0:08:38]} 11. Bxf6 {[%emt 0:04:01]} Qxf6 {[%emt 0:00:33]} 12. Nb3 {[%emt 0:01:38]} Bd6 {[%emt 0:07:39]} 13. Nbd4 {[%emt 0:04:47]} Rad8 {[%emt 0:11:12]} 14. Re1 {[%emt 0:04:26]} Bg4 {[%emt 0:04:50]} 15. Qd2 {[%emt 0:13:47]} Bc5 {[%emt 0:14:23]} 16. Nxc6 {[%emt 0:03:03]} bxc6 {[%emt 0:01:13]} 17. Nd4 {[%emt 0:01:54]} Bxe2 {[%emt 0:01:05]} 18. Rxe2 {[%emt 0:00:18]} Rfe8 {[%emt 0:02:58]} 19. Rae1 {[%emt 0:01:09]} Rxe2 {[%emt 0:00:25]} 20. Rxe2 {[%emt 0:00:21]} Bb6 {[%emt 0:03:12]} 21. b4 {[%emt 0:10:49]} c5 {[%emt 0:16:53]} 22. bxc5 {[%emt 0:01:13]} Bxc5 {[%emt 0:00:07]} 23. g3 {[%emt 0:05:26]} Bb6 {[%emt 0:00:36]} 24. Qd3 {[%emt 0:02:03]} g6 {[%emt 0:00:20]} 25. Nb3 {[%emt 0:04:37]} Qc6 {[%emt 0:01:57]} 26. Rd2 {[%emt 0:02:22]} a5 {[%emt 0:01:10]} 27. Nd4 {[%emt 0:02:21]} Qf6 {[%emt 0:05:42]} 28. Nb5 {[%emt 0:07:21]} Kg7 {[%emt 0:00:35]} 29. Kg2 {[%emt 0:02:54]} h5 {[%emt 0:01:13]} 30. Qf3 {[%emt 0:01:54]} Qc6 {[%emt 0:00:43]} 31. a4 {[%emt 0:01:30]} Qc4 $11 {[%emt 0:00:54]} 32. Qe2 {[%emt 0:02:39]} Qxa4 {[%emt 0:01:55]} 33. Qe5+ {[%emt 0:00:46]} Kh7 {[%emt 0:00:16]} 34. Rxd5 {[%emt 0:01:26]} Qa2 {[%emt 0:00:43]} 35. Nd6 {[%emt 0:02:30]} Qxf2+ {[%emt 0:01:09]} 36. Kh3 {[%emt 0:00:04]} Qf1+ {[%emt 0:02:30]} 37. Kh4 {[%emt 0:00:06]} Rd7 {[%emt 0:01:14]} 38. Ne8 {[%emt 0:01:02]} Bd8+ {[%emt 0:00:26]} 0-1

[Event "Czech Youth U14 Boys 2024"]
[Site "Kouty nad Desnou"]
[Date "2024.03.14"]
[Round "7.11"]
[White "Trcalek, Filip"]
[Black "Macosek, Alex"]
[Result "0-1"]
[ECO "B13"]
[WhiteElo "1615"]
[BlackElo "1781"]
[Annotator "NA RC"]
[PlyCount "86"]
[EventDate "2024.03.10"]
[EventType "swiss"]
[EventCountry "CZE"]
[SourceTitle "playchess.com"]
[Source "ChessBase"]
[SourceQuality "1"]
[TimeControl "40/5400+30:1800+30"]

1. e4 {[%emt 0:00:05]} c6 {[%emt 0:00:56]} 2. d4 {[%emt 0:00:24]} d5 {[%emt 0:00:37]} 3. exd5 {[%emt 0:01:07]} cxd5 {[%emt 0:00:22]} 4. Bd3 {[%emt 0:01:03]} Nf6 {[%emt 0:00:24]} 5. h3 {[%emt 0:01:21]} Nc6 {[%emt 0:01:04]} 6. c3 {[%emt 0:01:20]} e6 {[%emt 0:01:22]} 7. Nf3 {[%emt 0:02:45]} Bd6 {[%emt 0:00:24]} 8. O-O {[%emt 0:01:26]} O-O {[%emt 0:01:06]} 9. Re1 {[%emt 0:05:15]} Qc7 {[%emt 0:07:36]} 10. Nbd2 {[%emt 0:07:46]} Na5 {[%emt 0:02:26]} 11. Ne5 {[%emt 0:15:48]} a6 {[%emt 0:04:40]} 12. Ndf3 {[%emt 0:12:22]} b5 {[%emt 0:02:29]} 13. a3 {[%emt 0:03:58]} Nc4 {[%emt 0:04:07]} 14. Qe2 {[%emt 0:06:54]} Nd7 {[%emt 0:24:21]} 15. Nxc4 {[%emt 0:10:22]} bxc4 {[%emt 0:01:03]} 16. Bc2 {[%emt 0:01:14]} Rb8 {[%emt 0:04:34]} 17. Rb1 {[%emt 0:05:36]} Kh8 {[%emt 0:02:45]} 18. Qe3 {[%emt 0:12:57]} a5 {[%emt 0:02:21]} 19. Qe2 {[%emt 0:00:46]} Ba6 {[%emt 0:01:15]} 20. Qd2 {[%emt 0:01:23]} Rb7 {[%emt 0:05:42]} 21. Qg5 {[%emt 0:02:14]} Nf6 {[%emt 0:09:23]} 22. Qh4 {[%emt 0:01:19]} Kg8 {[%emt 0:05:37]} 23. Bg5 {[%emt 0:00:42]} Ne4 {[%emt 0:01:14]} 24. Bxe4 {[%emt 0:00:24]} dxe4 {[%emt 0:00:07]} 25. Qxe4 {[%emt 0:00:14]} Rfb8 {[%emt 0:00:49]} 26. Qc2 {[%emt 0:00:40]} Rb6 {[%emt 0:02:23]} 27. a4 {[%emt 0:01:40]} Bb7 {[%emt 0:00:20]} 28. Nd2 {[%emt 0:01:31]} Qc6 {[%emt 0:02:48]} 29. Nf3 {[%emt 0:00:56]} Ba8 {[%emt 0:01:08]} 30. Bc1 {[%emt 0:00:39]} Rb3 {[%emt 0:02:16]} 31. Ra1 {[%emt 0:00:20]} h6 {[%emt 0:01:07]} 32. Qd2 {[%emt 0:00:39]} Qd5 {[%emt 0:00:51]} 33. Qe2 {[%emt 0:00:29]} Bc6 {[%emt 0:04:06]} 34. Ra2 {[%emt 0:00:42]} Re8 {[%emt 0:01:43]} 35. Qd2 {[%emt 0:00:37]} f5 {[%emt 0:00:44]} 36. Qe2 {[%emt 0:00:34]} g5 {[%emt 0:00:40]} 37. Qf1 {[%emt 0:00:18]} g4 {[%emt 0:00:58]} 38. hxg4 {[%emt 0:00:08]} fxg4 {[%emt 0:00:05]} 39. Ne5 {[%emt 0:00:15]} h5 {[%emt 0:02:19]} 40. Nxc6 {[%emt 0:00:22]} Qxc6 {[%emt 0:00:10]} 41. Qe2 {[%emt 0:30:32]} e5 {[%emt 0:31:18]} 42. Qe4 {[%emt 0:01:32]} exd4 {[%emt 0:00:00]} 43. Qxc6 {[%emt 0:00:00]} Rxe1# 0-1

[Event "Czech Youth U14 Boys 2024"]
[Site "Kouty nad Desnou"]
[Date "2024.03.14"]
[Round "7.12"]
[White "Srba, Daniel"]
[Black "Lorenc, Matej"]
[Result "1-0"]
[ECO "B44"]
[WhiteElo "1742"]
[BlackElo "1637"]
[Annotator "NA RC"]
[PlyCount "97"]
[EventDate "2024.03.10"]
[EventType "swiss"]
[EventCountry "CZE"]
[SourceTitle "playchess.com"]
[Source "ChessBase"]
[SourceQuality "1"]
[TimeControl "40/5400+30:1800+30"]

1. e4 {[%emt 0:00:03]} c5 {[%emt 0:00:04]} 2. Nf3 {[%emt 0:00:03]} Nc6 {[%emt 0:00:04]} 3. d4 {[%emt 0:00:03]} cxd4 {[%emt 0:00:04]} 4. Nxd4 {[%emt 0:00:04]} e6 {[%emt 0:00:05]} 5. a3 {[%emt 0:12:24]} Nf6 {[%emt 0:00:17]} 6. Nc3 {[%emt 0:03:16]} Be7 {[%emt 0:02:57]} 7. Be3 {[%emt 0:08:13]} d5 {[%emt 0:04:52]} 8. exd5 {[%emt 0:03:52]} Nxd5 {[%emt 0:00:10]} 9. Nxd5 {[%emt 0:00:30]} exd5 {[%emt 0:01:15]} 10. Bd3 {[%emt 0:12:17]} Bf6 {[%emt 0:03:48]} 11. Be2 {[%emt 0:08:50]} O-O {[%emt 0:01:24]} 12. c3 {[%emt 0:02:00]} Nxd4 {[%emt 0:00:44]} 13. Bxd4 {[%emt 0:00:23]} Be6 {[%emt 0:00:26]} 14. O-O {[%emt 0:00:35]} Bxd4 {[%emt 0:01:09]} 15. Qxd4 {[%emt 0:00:06]} Qg5 {[%emt 0:00:50]} 16. f4 {[%emt 0:06:48]} Qg6 {[%emt 0:01:27]} 17. Bf3 {[%emt 0:07:46]} Rfd8 {[%emt 0:02:53]} 18. Rfe1 {[%emt 0:02:57]} Qf6 {[%emt 0:03:40]} 19. Qxf6 {[%emt 0:02:23]} gxf6 {[%emt 0:00:08]} 20. Rad1 {[%emt 0:00:23]} Rac8 {[%emt 0:00:46]} 21. Rd4 {[%emt 0:00:07]} Rc4 {[%emt 0:00:54]} 22. Red1 {[%emt 0:00:21]} b5 {[%emt 0:02:54]} 23. Be2 {[%emt 0:04:20]} Rxd4 {[%emt 0:00:20]} 24. Rxd4 {[%emt 0:00:02]} a6 {[%emt 0:01:02]} 25. Bf3 {[%emt 0:00:49]} f5 {[%emt 0:00:49]} 26. h3 {[%emt 0:00:05]} Kg7 {[%emt 0:00:57]} 27. g4 {[%emt 0:03:20]} Kf6 {[%emt 0:00:35]} 28. Kf2 {[%emt 0:01:42]} h6 {[%emt 0:01:23]} 29. Kg3 {[%emt 0:00:54]} Kg6 {[%emt 0:00:45]} 30. Kh4 {[%emt 0:02:06]} fxg4 {[%emt 0:01:41]} 31. hxg4 {[%emt 0:02:44]} f5 {[%emt 0:00:42]} 32. gxf5+ {[%emt 0:03:01]} Kxf5 {[%emt 0:00:46]} 33. Bg4+ {[%emt 0:01:30]} Kf6 {[%emt 0:00:11]} 34. Bxe6 {[%emt 0:00:17]} Kxe6 {[%emt 0:00:17]} 35. Kg4 {[%emt 0:00:33]} Rc8 {[%emt 0:00:29]} 36. Rd2 {[%emt 0:01:15]} Rc6 {[%emt 0:00:31]} 37. Rd3 {[%emt 0:04:01]} Rd6 {[%emt 0:00:21]} 38. f5+ {[%emt 0:01:00]} Kf6 {[%emt 0:00:37]} 39. Kf4 {[%emt 0:00:56]} Rd7 {[%emt 0:00:38]} 40. Rh3 {[%emt 0:02:25]} Rh7 {[%emt 0:00:18]} 41. Rh2 {[%emt 0:30:20]} h5 {[%emt 0:30:25]} 42. Re2 {[%emt 0:06:02]} h4 {[%emt 0:02:34]} 43. Re6+ {[%emt 0:00:00]} Kf7 {[%emt 0:00:00]} 44. Rxa6 {[%emt 0:00:00]} Rh8 {[%emt 0:00:00]} 45. Kg5 {[%emt 0:00:00]} h3 {[%emt 0:00:00]} 46. Ra7+ {[%emt 0:00:00]} Kg8 {[%emt 0:00:00]} 47. Kg6 {[%emt 0:00:00]} Rh6+ {[%emt 0:00:00]} 48. Kxh6 {[%emt 0:00:00]} h2 {[%emt 0:00:00]} 49. Kg6 {[%emt 0:00:00]} 1-0